bitfinex/quotes_SOLUSD_20250601
["timestamp","ask_amount","ask_price","bid_price","bid_amount"]
[1748794578345,29.72659892,155.37,155.33,29.72659892]
[1748794578828,6.43548866,155.39,155.31,42.18]
[1748794578829,29.72659892,155.36,155.32,29.72659892]
[1748794579039,29.72659892,155.36,155.31,29.72659892]
[1748794579723,36.16330749,155.36,155.31,29.72659892]
[1748794580148,29.72659892,155.35,155.31,29.72659892]
[1748794580347,36.16330749,155.36,155.31,29.72659892]
[1748794580649,29.72659892,155.36,155.31,29.72659892]
[1748794580848,6.4363396,155.37,155.32,29.72659892]
[1748794581022,36.16293852,155.37,155.32,29.72659892]
[1748794581727,11.98,155.4,155.34,29.72659892]
[1748794581957,29.72659892,155.39,155.34,29.72659892]
[1748794583042,48.14167627,155.4,155.35,29.72659892]
[1748794583443,29.72659892,155.39,155.31,25.08838429]
[1748794583770,29.72659892,155.39,155.34,29.72659892]
[1748794584137,11.98,155.4,155.36,29.72659892]
[1748794584338,11.98,155.4,155.35,42.06]
[1748794584339,41.70659892,155.4,155.35,42.06]
[1748794584660,41.70659892,155.4,155.35,71.78659892]
[1748794584848,29.72659892,155.39,155.35,71.78659892]
[1748794585442,41.70659892,155.4,155.35,71.78659892]
[1748794585644,48.14164231,155.4,155.35,71.78659892]
[1748794585961,41.70659892,155.4,155.35,71.78659892]
[1748794586166,41.70659892,155.4,155.36,29.72659892]
[1748794586372,11.98,155.4,155.36,29.72659892]
[1748794587269,18.41503322,155.4,155.36,29.72659892]
[1748794587771,29.72659892,155.39,155.35,42.06]
[1748794587942,29.72659892,155.37,155.31,32.43858294]
[1748794588146,29.72659892,155.37,155.33,29.72659892]
[1748794588356,29.72659892,155.37,155.32,48.49812037]
[1748794588548,36.16251193,155.38,155.33,29.72659892]
[1748794589565,36.16251193,155.38,155.29,18.64964886]
[1748794589566,36.16251193,155.38,155.28,11.98]
[1748794589744,29.72659892,155.32,155.26,6.44071959]
[1748794589941,29.72659892,155.32,155.28,29.72659892]
[1748794590151,31.25529892,155.35,155.3,29.72659892]
[1748794590359,22.52549982,155.38,155.3,29.72659892]
[1748794590577,29.72659892,155.35,155.31,29.72659892]
[1748794591145,36.1634689,155.36,155.31,29.72659892]
[1748794591936,36.1634689,155.36,155.32,29.72659892]
[1748794592567,6.43639164,155.37,155.33,29.72659892]
[1748794592776,27.5287,155.39,155.34,29.72659892]
[1748794592777,29.72659892,155.38,155.34,29.72659892]
[1748794592985,36.16251065,155.38,155.34,29.72659892]
[1748794593165,36.16251065,155.38,155.32,42.06]
[1748794593166,7.96424132,155.39,155.35,29.72659892]
[1748794593463,11.98,155.4,155.38,29.72659892]
[1748794593653,29.72659892,155.41,155.36,71.78659892]
[1748794594063,29.72659892,155.4,155.36,71.78659892]
[1748794594371,29.72659892,155.41,155.37,29.72659892]
[1748794594543,6.43500643,155.4,155.36,71.78659892]
[1748794594745,36.16126897,155.41,155.37,29.72659892]
[1748794595365,6.43467005,155.41,155.37,29.72659892]
[1748794596468,36.16126897,155.41,155.36,42.06]
[1748794596846,36.16126897,155.41,155.36,71.78659892]
[1748794597250,6.43467005,155.41,155.37,29.72659892]
[1748794597759,1.6312,155.43,155.36,48.49663002]
[1748794597957,29.72659892,155.44,155.4,29.72659892]
[1748794598462,29.72659892,155.44,155.39,29.72659892]
[1748794598854,36.1599494,155.44,155.39,29.72659892]
[1748794599774,6.43335048,155.44,155.4,29.72659892]
[1748794599946,36.1599494,155.44,155.4,29.72659892]
[1748794600374,8.04551525,155.47,155.43,29.72659892]
[1748794600550,8.04551525,155.47,155.44,29.72659892]
[1748794600751,37.77211417,155.47,155.43,29.72659892]
[1748794601245,29.72659892,155.46,155.41,42.04]
[1748794601465,29.72659892,155.44,155.39,29.72659892]
[1748794601667,29.72659892,155.44,155.4,42.04]
[1748794601976,29.72659892,155.44,155.4,29.72659892]
[1748794602777,36.16004232,155.44,155.39,71.76659892]
[1748794602969,29.72659892,155.44,155.39,71.76659892]
[1748794603359,29.72659892,155.4,155.35,29.72659892]
[1748794603562,29.72659892,155.4,155.36,71.76659892]
[1748794603756,29.72659892,155.41,155.37,29.72659892]
[1748794604354,29.72659892,155.41,155.36,42.04]
[1748794604559,29.72659892,155.41,155.37,29.72659892]
[1748794605074,29.72659892,155.41,155.36,42.04]
[1748794605075,29.72659892,155.42,155.38,29.72659892]
[1748794605390,29.72659892,155.43,155.38,29.72659892]
[1748794605588,29.72659892,155.42,155.38,29.72659892]
[1748794606159,29.72659892,155.41,155.37,29.72659892]
[1748794606886,29.72659892,155.4,155.36,29.72659892]
[1748794607088,36.16187147,155.4,155.36,29.72659892]
[1748794607678,36.16187147,155.4,155.34,29.72659892]
[1748794607679,29.72659892,155.38,155.34,29.72659892]
[1748794608370,29.72659892,155.38,155.33,71.76659892]
[1748794608973,36.16253821,155.38,155.33,71.76659892]
[1748794609273,36.16253821,155.38,155.34,29.72659892]
[1748794610066,36.16253821,155.38,155.33,29.72659892]
[1748794610281,36.16253821,155.38,155.33,71.76659892]
[1748794611069,36.16253821,155.38,155.34,29.72659892]
[1748794611582,36.16253821,155.38,155.33,71.76659892]
[1748794612069,36.16253821,155.38,155.32,37.78]
[1748794612070,36.16253821,155.38,155.34,29.72659892]
[1748794612484,36.16253821,155.38,155.26,16.10130289]
[1748794612485,55.72659892,155.35,155.27,42.04]
[1748794612790,29.72659892,155.34,155.29,29.72659892]
[1748794613500,6.43790639,155.33,155.29,29.72659892]
[1748794613995,36.16450531,155.33,155.25,125.10110366]
[1748794614159,36.16450531,155.33,155.28,29.72659892]
[1748794614884,29.72659892,155.32,155.28,29.72659892]
[1748794615188,36.16450531,155.33,155.28,29.72659892]
[1748794615781,29.72659892,155.31,155.26,29.72659892]
[1748794616010,29.72659892,155.31,155.26,42.04]
[1748794616179,29.72659892,155.3,155.25,29.72659892]
[1748794617505,6.43956468,155.29,155.26,29.72659892]
[1748794618204,29.72659892,155.28,155.23,41.50659892]
[1748794618394,29.72659892,155.28,155.23,83.54659892]
[1748794618708,29.72659892,155.28,155.23,41.50659892]
[1748794618906,29.72659892,155.28,155.23,29.72659892]
[1748794619485,36.16777264,155.26,155.22,29.72659892]
[1748794620079,36.16777264,155.26,155.21,29.72659892]
[1748794620481,29.72659892,155.25,155.21,29.72659892]
[1748794620685,29.72659892,155.24,155.19,97.76659892]
[1748794620998,29.72659892,155.24,155.2,29.72659892]
[1748794621626,29.72659892,155.24,155.19,29.72659892]
[1748794621836,26.0,155.29,155.23,29.72659892]
[1748794622124,55.72659892,155.29,155.25,29.72659892]
[1748794622288,31.29849892,155.3,155.25,29.72659892]
[1748794622489,26.0,155.27,155.18,3.3861807]
[1748794622814,26.0,155.2,155.08,6.2304]
[1748794622987,29.72659892,155.19,155.08,6.2304]
[1748794623190,29.72659892,155.17,155.12,29.72659892]
[1748794623422,11.78,155.2,155.08,12.67827913]
[1748794623622,29.72659892,155.17,155.12,29.72659892]
[1748794623819,29.72659892,155.17,155.13,29.72659892]
[1748794624118,29.72659892,155.17,155.1,18.64964886]
[1748794624530,29.72659892,155.14,155.1,29.72659892]
[1748794624684,60.33299954,155.19,155.09,29.72659892]
[1748794624886,29.72659892,155.15,155.08,31.32826047]
[1748794625085,29.72659892,155.15,155.1,29.72659892]
[1748794625696,29.72659892,155.14,155.08,50.88004886]
[1748794625998,29.72659892,155.15,155.1,29.72659892]
[1748794626199,29.72659892,155.15,155.11,29.72659892]
[1748794626605,11.78,155.19,155.14,29.72659892]
[1748794626914,11.78,155.19,155.11,44.64964886]
[1748794626915,11.78,155.19,155.15,29.72659892]
[1748794627283,11.78,155.19,155.16,29.72659892]
[1748794627511,11.78,155.19,155.15,29.72659892]
[1748794627807,29.72659892,155.18,155.14,29.72659892]
[1748794628013,41.50659892,155.19,155.15,29.72659892]
[1748794628402,11.78,155.19,155.15,29.72659892]
[1748794628717,11.78,155.19,155.16,29.72659892]
[1748794629009,11.78,155.19,155.15,29.72659892]
[1748794629806,47.95042612,155.19,155.12,26.0]
[1748794629995,29.72659892,155.18,155.14,29.72659892]
[1748794630197,41.50659892,155.19,155.15,29.72659892]
[1748794630405,6.44205372,155.23,155.17,29.72659892]
[1748794630593,92.7,155.25,155.2,29.72659892]
[1748794630796,29.72659892,155.24,155.18,18.64964886]
[1748794631008,29.72659892,155.24,155.19,29.72659892]
[1748794631210,29.72659892,155.22,155.17,42.08]
[1748794631411,29.72659892,155.21,155.17,42.08]
[1748794631726,29.72659892,155.2,155.16,54.93024778]
[1748794632805,29.72659892,155.2,155.16,48.37624778]
[1748794633118,29.72659892,155.2,155.15,71.80659892]
[1748794633316,36.16992085,155.2,155.15,71.80659892]
[1748794633501,29.72659892,155.19,155.15,71.80659892]
[1748794633703,29.72659892,155.18,155.15,42.08]
[1748794634237,6.44163875,155.24,155.15,78.25189884]
[1748794634394,29.72659892,155.2,155.15,29.72659892]
[1748794634597,29.72659892,155.19,155.15,29.72659892]
[1748794634819,29.72659892,155.2,155.15,29.72659892]
[1748794635016,29.72659892,155.19,155.07,17.62300735]
[1748794635193,67.19538449,155.24,155.14,29.72659892]
[1748794635194,13.37,155.2,155.14,29.72659892]
[1748794635398,13.37,155.2,155.16,29.72659892]
[1748794635399,41.50659892,155.2,155.16,29.72659892]
[1748794635616,11.78,155.2,155.16,29.72659892]
[1748794637488,47.94994813,155.2,155.14,60.72964886]
[1748794637805,18.22334921,155.2,155.15,29.72659892]
[1748794638006,41.50659892,155.2,155.15,29.72659892]
[1748794638212,29.72659892,155.19,155.15,29.72659892]
[1748794638631,41.50659892,155.2,155.15,29.72659892]
[1748794638802,29.72659892,155.19,155.15,29.72659892]
[1748794639136,29.72659892,155.19,155.14,67.17539513]
[1748794639311,29.72659892,155.19,155.15,29.72659892]
[1748794639511,47.94995589,155.2,155.15,29.72659892]
[1748794639833,41.50659892,155.2,155.15,29.72659892]
[1748794639989,18.22336857,155.2,155.15,29.72659892]
[1748794640189,47.94996749,155.2,155.15,29.72659892]
[1748794640414,41.50659892,155.2,155.15,29.72659892]
[1748794640598,41.50659892,155.2,155.14,67.17532706]
[1748794640801,47.94993784,155.2,155.15,29.72659892]
[1748794641019,47.94993784,155.2,155.16,29.72659892]
[1748794641317,11.78,155.2,155.16,29.72659892]
[1748794641617,41.50659892,155.2,155.16,29.72659892]
[1748794641997,47.94995896,155.2,155.15,29.72659892]
[1748794642823,29.72659892,155.19,155.15,29.72659892]
[1748794643030,29.72659892,155.18,155.14,29.72659892]
[1748794643194,29.72659892,155.18,155.13,71.80659892]
[1748794643516,29.72659892,155.19,155.14,29.72659892]
[1748794644413,29.72659892,155.18,155.13,42.08]
[1748794644617,29.72659892,155.18,155.14,29.72659892]
[1748794644821,29.72659892,155.18,155.13,71.80659892]
[1748794645194,29.72659892,155.18,155.13,29.72659892]
[1748794645397,29.72659892,155.17,155.13,48.37624778]
[1748794645612,36.17085195,155.18,155.13,48.37624778]
[1748794645918,29.72659892,155.17,155.13,29.72659892]
[1748794646517,36.17085195,155.18,155.13,29.72659892]
[1748794647221,19.93828581,155.17,155.12,45.93828581]
[1748794647724,26.38295054,155.17,155.12,45.93828581]
[1748794647923,19.93828581,155.14,155.1,18.64964886]
[1748794648126,19.93828581,155.14,155.1,80.66793467]
[1748794648323,6.44466473,155.17,155.1,38.58793467]
[1748794648324,19.93828581,155.15,155.1,38.58793467]
[1748794648508,19.93828581,155.15,155.1,19.93828581]
[1748794648832,19.93828581,155.14,155.09,45.93828581]
[1748794649032,6.44466473,155.17,155.08,18.64964886]
[1748794649033,19.93828581,155.12,155.08,18.64964886]
[1748794649520,19.93828581,155.11,155.07,19.93828581]
[1748794649723,19.93828581,155.11,155.06,65.26520786]
[1748794649928,19.93828581,155.09,155.06,46.615559]
[1748794650112,19.93828581,155.1,155.06,46.615559]
[1748794651014,19.93828581,155.1,155.06,66.55384481]
[1748794651210,29.93493989,155.1,155.06,76.55049889]
[1748794651418,29.93493989,155.1,155.06,46.615559]
[1748794651609,29.93493989,155.1,155.06,76.55049889]
[1748794651807,29.93493989,155.1,155.06,46.615559]
[1748794652011,29.93493989,155.1,155.06,76.55049889]
[1748794652232,7.571,155.1,155.06,46.615559]
[1748794652524,26.0,155.09,155.06,46.615559]
[1748794653041,29.93493989,155.07,155.06,46.615559]
[1748794653336,29.93493989,155.08,155.06,46.615559]
[1748794653506,29.93493989,155.09,155.06,46.615559]
[1748794654434,7.95848157,155.1,155.06,46.615559]
[1748794654617,29.93493989,155.07,155.06,46.615559]
[1748794655718,6.44870058,155.07,155.06,46.615559]
[1748794655934,36.38364047,155.07,155.06,46.615559]
[1748794656617,6.44786897,155.09,155.06,46.615559]
[1748794657410,29.93493989,155.09,155.06,46.615559]
[1748794657620,63.8934523,155.1,155.06,46.615559]
[1748794657824,33.95851241,155.1,155.06,46.615559]
[1748794658020,29.93493989,155.1,155.06,76.55049889]
[1748794659016,29.93493989,155.09,155.06,46.615559]
[1748794659218,29.93493989,155.1,155.06,76.55049889]
[1748794660311,12.0,155.12,155.08,29.93493989]
[1748794660518,62.38079589,155.14,155.1,29.93493989]
[1748794660739,6.445856,155.14,155.1,29.93493989]
[1748794660917,36.38034737,155.15,155.11,29.93493989]
[1748794661235,104.8,155.16,155.12,29.93493989]
[1748794661236,111.24505871,155.16,155.12,29.93493989]
[1748794661444,141.1799986,155.16,155.11,29.93493989]
[1748794661834,29.93493989,155.15,155.11,29.93493989]
[1748794662335,36.38047796,155.15,155.1,29.93493989]
[1748794662512,29.93493989,155.15,155.11,29.93493989]
[1748794662843,141.18020536,155.16,155.11,29.93493989]
[1748794663338,111.24526547,155.16,155.11,29.93493989]
[1748794663518,12.0,155.16,155.12,29.93493989]
[1748794663839,36.37911666,155.18,155.14,29.93493989]
[1748794664006,29.93493989,155.18,155.14,29.93493989]
[1748794664214,36.37877719,155.19,155.15,29.93493989]
[1748794664530,29.93493989,155.18,155.14,29.93493989]
[1748794664721,29.93493989,155.18,155.13,29.93493989]
[1748794665438,29.93493989,155.17,155.13,29.93493989]
[1748794666219,6.44329896,155.2,155.13,29.93493989]
[1748794666425,29.93493989,155.18,155.14,29.93493989]
[1748794666620,29.93493989,155.19,155.14,29.93493989]
[1748794666924,29.93493989,155.19,155.15,29.93493989]
[1748794667319,29.93493989,155.19,155.14,29.93493989]
[1748794667640,6.44329896,155.2,155.14,29.93493989]
[1748794667641,29.93493989,155.18,155.14,29.93493989]
[1748794667933,29.93493989,155.18,155.14,18.64964886]
[1748794668135,36.37926867,155.18,155.14,18.64964886]
[1748794668341,36.37926867,155.18,155.12,18.64964886]
[1748794668536,29.93493989,155.17,155.13,29.93493989]
[1748794668839,29.93493989,155.17,155.12,72.35493989]
[1748794669134,29.93493989,155.16,155.11,18.64964886]
[1748794669337,29.93493989,155.17,155.12,72.31493989]
[1748794670435,6.44496004,155.16,155.12,72.29493989]
[1748794670633,36.37989993,155.16,155.12,42.36]
[1748794672027,36.37959373,155.17,155.12,72.29493989]
[1748794672431,29.93493989,155.17,155.12,78.74154886]
[1748794672736,29.93493989,155.17,155.13,29.93493989]
[1748794672946,36.3795623,155.17,155.13,29.93493989]
[1748794673439,148.9,155.2,155.16,29.93493989]
[1748794673644,148.9,155.2,155.17,29.93493989]
[1748794674142,29.93493989,155.19,155.14,48.58458875]
[1748794674445,36.37916328,155.18,155.15,42.4]
[1748794674947,29.93493989,155.17,155.13,68.4]
[1748794675244,26.38312366,155.18,155.13,88.33890027]
[1748794675441,19.93890027,155.17,155.13,42.4]
[1748794675739,26.38312366,155.18,155.13,42.4]
[1748794676050,6.44422339,155.18,155.13,42.4]
[1748794676230,148.9,155.2,155.16,19.93890027]
[1748794676431,148.9,155.2,155.17,19.93890027]
[1748794676742,148.9,155.2,155.16,19.93890027]
[1748794677338,168.83890027,155.2,155.16,19.93890027]
[1748794677827,148.9,155.2,155.16,19.93890027]
[1748794678429,168.83890027,155.2,155.16,19.93890027]
[1748794678835,175.28236426,155.2,155.15,19.93890027]
[1748794679051,19.93890027,155.19,155.15,19.93890027]
[1748794679347,29.90013261,155.19,155.15,29.90013261]
[1748794679936,155.34346399,155.2,155.15,29.90013261]
[1748794680124,185.2435966,155.2,155.15,29.90013261]
[1748794680456,29.90013261,155.19,155.15,29.90013261]
[1748794680621,178.80013261,155.2,155.16,29.90013261]
[1748794680831,148.9,155.2,155.16,29.90013261]
[1748794681152,148.9,155.2,155.17,18.64964886]
[1748794681332,36.34355305,155.2,155.16,72.22013261]
[1748794682153,29.90013261,155.19,155.15,60.96964886]
[1748794682357,36.34355305,155.2,155.15,90.86978147]
[1748794682654,29.90013261,155.19,155.15,90.86978147]
[1748794682949,6.44205372,155.23,155.17,48.54978147]
[1748794683260,29.90013261,155.22,155.17,48.54978147]
[1748794683427,29.90013261,155.21,155.17,48.54978147]
[1748794683835,29.90013261,155.21,155.16,29.90013261]
[1748794684831,6.44412939,155.18,155.11,12.0]
[1748794685035,36.344262,155.18,155.14,18.64964886]
[1748794685356,6.44176022,155.24,155.17,48.54978147]
[1748794685583,43.52013261,155.25,155.21,29.90013261]
[1748794686041,43.52013261,155.25,155.2,29.90013261]
[1748794686633,29.90013261,155.24,155.2,29.90013261]
[1748794686835,29.90013261,155.22,155.18,42.26]
[1748794687139,36.34297978,155.22,155.18,42.26]
[1748794688847,6.44284717,155.22,155.16,55.90013261]
[1748794689040,29.90013261,155.2,155.16,90.74978147]
[1748794689236,29.90013261,155.21,155.16,90.74978147]
[1748794689458,29.90013261,155.19,155.16,42.2]
[1748794689991,29.90013261,155.19,155.14,48.54978147]
[1748794690162,29.90013261,155.19,155.14,90.74978147]
[1748794690875,29.90013261,155.19,155.14,90.72978147]
[1748794691077,29.90013261,155.19,155.14,48.54978147]
[1748794691078,36.34396401,155.19,155.14,48.54978147]
[1748794691576,29.90013261,155.19,155.14,54.99554815]
[1748794691875,29.90013261,155.18,155.13,55.90013261]
[1748794692170,29.90013261,155.17,155.14,42.16]
[1748794692343,29.90013261,155.17,155.13,29.90013261]
[1748794692550,29.90013261,155.16,155.12,18.64964886]
[1748794692770,29.90013261,155.15,155.11,29.90013261]
[1748794693485,36.34555278,155.15,155.1,72.04013261]
[1748794693855,29.90013261,155.14,155.1,72.02013261]
[1748794694053,29.90013261,155.15,155.11,29.90013261]
[1748794694272,36.34558226,155.15,155.11,29.90013261]
[1748794694673,36.34558226,155.15,155.1,72.00013261]
[1748794695061,29.90013261,155.15,155.1,72.00013261]
[1748794695373,6.44466213,155.17,155.13,29.90013261]
[1748794695582,29.90013261,155.17,155.13,29.90013261]
[1748794695772,29.90013261,155.16,155.12,72.02013261]
[1748794696485,29.90013261,155.17,155.13,29.90013261]
[1748794696684,11.9,155.19,155.16,29.90013261]
[1748794697057,1.6567,155.22,155.18,29.90013261]
[1748794697266,160.8,155.24,155.2,29.90013261]
[1748794697267,11.9,155.24,155.2,29.90013261]
[1748794697453,11.9,155.24,155.21,29.90013261]
[1748794697859,11.9,155.24,155.17,18.64964886]
[1748794698061,11.9,155.24,155.21,29.90013261]
[1748794699084,8.09750917,155.26,155.22,29.90013261]
[1748794699581,37.99764178,155.26,155.22,29.90013261]
[1748794700974,8.09750917,155.26,155.2,42.1]
[1748794701159,26.36178357,155.25,155.2,62.02028459]
[1748794701360,19.92028459,155.24,155.17,18.64964886]
[1748794701572,19.92028459,155.23,155.19,19.92028459]
[1748794702175,19.92028459,155.23,155.17,25.0941344]
[1748794702377,6.44149898,155.25,155.17,80.66993345]
[1748794702378,19.92028459,155.22,155.17,80.66993345]
[1748794702682,19.92028459,155.23,155.19,19.92028459]
[1748794702887,6.44149898,155.25,155.19,19.92028459]
[1748794703069,19.92028459,155.24,155.19,19.92028459]
[1748794703273,6.44136375,155.25,155.21,19.92028459]
[1748794703485,21.57698459,155.26,155.22,19.92028459]
[1748794704058,19.92028459,155.25,155.21,19.92028459]
[1748794705264,1.6567,155.26,155.22,19.92028459]
[1748794705582,168.82028459,155.27,155.22,19.92028459]
[1748794706287,19.92028459,155.26,155.22,19.92028459]
[1748794706983,155.34043914,155.27,155.21,62.00028459]
[1748794707285,26.36125905,155.26,155.21,62.00028459]
[1748794708159,6.44097446,155.26,155.21,62.00028459]
[1748794708360,26.36125905,155.26,155.22,19.92028459]
[1748794709567,19.92028459,155.24,155.2,19.92028459]
[1748794710587,19.92028459,155.25,155.2,19.92028459]
[1748794711079,26.36173705,155.25,155.21,19.92028459]
[1748794711495,168.82028459,155.27,155.23,19.92028459]
[1748794712583,168.82028459,155.27,155.22,19.92028459]
[1748794712783,26.36123154,155.26,155.22,19.92028459]
[1748794713597,175.2607839,155.27,155.22,19.92028459]
[1748794714510,11.9,155.29,155.26,19.92028459]
[1748794714800,22.432879,155.3,155.28,19.92028459]
[1748794714963,22.432879,155.3,155.24,6.44163875]
[1748794714964,26.35951814,155.3,155.25,19.92028459]
[1748794715581,26.35951814,155.3,155.26,19.92028459]
[1748794715782,6.43923355,155.3,155.26,19.92028459]
[1748794716905,6.43832088,155.32,155.28,19.92028459]
[1748794717269,26.35860547,155.32,155.27,19.92028459]
[1748794718764,6.43832088,155.32,155.28,19.92028459]
[1748794718988,26.35860547,155.32,155.27,19.92028459]
[1748794719294,19.92028459,155.31,155.26,38.56993345]
[1748794719773,19.92028459,155.31,155.24,6.44148638]
[1748794720099,6.43832088,155.32,155.25,38.56993345]
[1748794720100,19.92028459,155.3,155.25,38.56993345]
[1748794720673,19.92028459,155.3,155.26,19.92028459]
[1748794721078,26.35950275,155.3,155.25,18.64964886]
[1748794721273,19.92028459,155.28,155.2,12.76054037]
[1748794721486,19.92028459,155.26,155.21,60.70964886]
[1748794721683,6.43921816,155.3,155.22,19.92028459]
[1748794721684,19.92028459,155.27,155.22,19.92028459]
[1748794721880,19.92028459,155.27,155.22,20.42028459]
[1748794723490,26.36069497,155.27,155.23,19.92028459]
[1748794724172,26.36069497,155.27,155.22,19.92028459]
[1748794724384,19.92028459,155.25,155.2,26.0]
[1748794724583,19.92028459,155.24,155.2,19.92028459]
[1748794724787,19.92028459,155.24,155.2,61.98028459]
[1748794725185,19.92028459,155.24,155.2,19.92028459]
[1748794725401,26.36192716,155.24,155.2,19.92028459]
[1748794725614,26.36192716,155.24,155.19,92.40993345]
[1748794725919,26.36192716,155.24,155.19,50.34993345]
[1748794726077,19.92028459,155.23,155.19,50.34993345]
[1748794726587,19.92028459,155.23,155.19,38.56993345]
[1748794726823,19.92028459,155.22,155.16,6.0196]
[1748794727027,19.92028459,155.2,155.16,19.92028459]
[1748794727334,19.92028459,155.21,155.17,19.92028459]
[1748794727628,26.36320703,155.21,155.17,19.92028459]
[1748794728416,26.36288305,155.22,155.17,19.92028459]
[1748794729625,19.92028459,155.2,155.14,30.42964886]
[1748794729828,19.92028459,155.19,155.15,61.98028459]
[1748794730139,19.92028459,155.19,155.14,50.34993345]
[1748794730310,19.92028459,155.19,155.14,92.40993345]
[1748794730504,19.92028459,155.19,155.15,19.92028459]
[1748794730699,19.92028459,155.2,155.15,19.92028459]
[1748794731403,19.92028459,155.19,155.15,19.92028459]
[1748794731605,26.3642915,155.19,155.15,19.92028459]
[1748794732001,6.44400691,155.19,155.15,19.92028459]
[1748794732207,26.3642915,155.19,155.15,19.92028459]
[1748794733629,6.44400691,155.19,155.15,19.92028459]
[1748794734131,26.3642915,155.19,155.15,19.92028459]
[1748794734430,19.92028459,155.18,155.14,11.78]
[1748794734627,19.92028459,155.18,155.14,19.92028459]
[1748794734934,27.94972109,155.2,155.15,19.92028459]
[1748794735105,19.92028459,155.19,155.15,19.92028459]
[1748794735305,19.92028459,155.19,155.14,38.56993345]
[1748794735933,26.36434711,155.19,155.14,38.56993345]
[1748794736328,19.92028459,155.17,155.13,61.98028459]
[1748794736532,19.92028459,155.18,155.13,61.98028459]
[1748794737714,6.44454469,155.17,155.13,61.98028459]
[1748794738525,6.44454469,155.17,155.13,19.92028459]
[1748794740021,26.36482928,155.17,155.13,19.92028459]
[1748794740626,26.36482928,155.17,155.11,18.64964886]
[1748794740828,26.36482928,155.17,155.13,19.92028459]
[1748794741646,6.44205372,155.23,155.17,18.64964886]
[1748794741852,8.08658796,155.24,155.22,19.92028459]
[1748794742031,155.34134978,155.25,155.23,19.92028459]
[1748794742233,11.78,155.27,155.24,19.92028459]
[1748794742441,18.22043785,155.27,155.25,19.92028459]
[1748794742744,11.78,155.27,155.25,19.92028459]
[1748794743746,8.08490257,155.28,155.25,19.92028459]
[1748794744142,8.08490257,155.28,155.24,19.92028459]
[1748794744627,28.00518716,155.28,155.24,19.92028459]
[1748794744832,19.92028459,155.27,155.22,61.98028459]
[1748794745025,19.92028459,155.27,155.23,19.92028459]
[1748794746040,28.00518716,155.28,155.23,19.92028459]
[1748794747219,1.6448,155.32,155.27,19.92028459]
[1748794747420,1.6448,155.32,155.28,19.92028459]
[1748794747920,19.92028459,155.3,155.23,18.64964886]
[1748794748123,19.92028459,155.3,155.26,19.92028459]
[1748794748444,19.92028459,155.31,155.26,19.92028459]
[1748794750053,6.43915003,155.3,155.26,19.92028459]
[1748794751056,6.43915003,155.3,155.24,48.50156744]
[1748794751057,6.43915003,155.3,155.27,19.92028459]
[1748794751237,26.35908531,155.31,155.27,19.92028459]
[1748794751634,6.43880072,155.31,155.27,19.92028459]
[1748794751853,28.00354075,155.32,155.27,19.92028459]
[1748794752041,8.08325616,155.32,155.28,19.92028459]
[1748794752244,32.43801236,155.33,155.29,19.92028459]
[1748794752842,52.35829695,155.33,155.29,19.92028459]
[1748794753044,52.35829695,155.33,155.28,19.92028459]
[1748794754038,32.43801236,155.33,155.3,19.92028459]
[1748794754242,32.43801236,155.33,155.27,6.44037448]
[1748794754548,19.92028459,155.32,155.27,19.92028459]
[1748794754757,52.35824527,155.33,155.28,19.92028459]
[1748794755065,26.0,155.33,155.29,19.92028459]
[1748794755360,38.11783182,155.34,155.3,19.92028459]
[1748794755558,6.437137,155.35,155.31,19.92028459]
[1748794755868,53.96278709,155.36,155.31,19.92028459]
[1748794756441,11.76,155.37,155.33,19.92028459]
[1748794756763,38.1166067,155.37,155.32,19.92028459]
[1748794757062,19.92028459,155.36,155.32,19.92028459]
[1748794757450,26.35735984,155.36,155.32,19.92028459]
[1748794757954,26.35735984,155.36,155.31,19.92028459]
[1748794759167,19.92028459,155.35,155.31,19.92028459]
[1748794759547,6.43749195,155.34,155.31,19.92028459]
[1748794760069,26.35777654,155.34,155.29,19.92028459]
[1748794760435,19.92028459,155.33,155.29,19.92028459]
[1748794760938,26.35777654,155.34,155.29,19.92028459]
[1748794761263,6.43749195,155.34,155.3,19.92028459]
[1748794763365,6.43749195,155.34,155.28,68.02]
[1748794763542,26.35777654,155.34,155.28,68.02]
[1748794763746,26.35777654,155.34,155.29,19.92028459]
[1748794764262,6.43749195,155.34,155.3,19.92028459]
[1748794764651,6.43749195,155.34,155.29,19.92028459]
[1748794764652,26.35777654,155.34,155.29,19.92028459]
[1748794764849,19.92028459,155.32,155.27,72.40964886]
[1748794765051,6.43749195,155.34,155.29,19.92028459]
[1748794765241,6.43749195,155.34,155.3,19.92028459]
[1748794765540,26.35777654,155.34,155.3,19.92028459]
[1748794767469,26.35777654,155.34,155.28,6.43989271]
[1748794767647,19.92028459,155.33,155.27,60.64964886]
[1748794767847,19.92028459,155.33,155.28,19.92028459]
[1748794768354,19.92028459,155.33,155.29,19.92028459]
[1748794768866,26.35821071,155.33,155.29,19.92028459]
[1748794771874,26.35821071,155.33,155.28,19.92028459]